bitfinex/quotes_BTCUSD_20251208
["timestamp","ask_amount","ask_price","bid_price","bid_amount"]
[1765213689034,0.00023887,90238.0,90237.0,0.63479043]
[1765213689532,0.00023887,90238.0,90237.0,0.68135792]
[1765213689731,0.00023887,90238.0,90237.0,0.67335792]
[1765213689963,0.00023887,90238.0,90237.0,0.64179043]
[1765213690140,0.00023887,90238.0,90237.0,0.57926744]
[1765213690570,0.00023887,90238.0,90237.0,0.59669943]
[1765213690741,0.00023887,90238.0,90237.0,0.57126744]
[1765213691141,0.00023887,90238.0,90237.0,0.57926744]
[1765213691839,0.00023887,90238.0,90237.0,0.57626744]
[1765213692047,0.00023887,90238.0,90237.0,0.57926744]
[1765213692363,0.00023887,90238.0,90237.0,0.62762003]
[1765213692566,0.00023887,90238.0,90237.0,0.56826744]
[1765213692811,0.00023887,90238.0,90237.0,0.57626744]
[1765213692988,0.00023887,90238.0,90237.0,0.57026744]
[1765213693356,0.22187498,90238.0,90237.0,0.39178546]
[1765213693530,0.00023887,90238.0,90237.0,0.23407144]
[1765213694089,0.00023887,90238.0,90237.0,0.24826744]
[1765213694315,0.00023887,90238.0,90237.0,0.28797881]
[1765213694513,0.00023887,90238.0,90237.0,0.30762003]
[1765213694840,0.00023887,90238.0,90237.0,0.30462003]
[1765213695082,0.00023887,90238.0,90237.0,0.24926744]
[1765213695259,0.00023887,90238.0,90237.0,1.69828143]
[1765213695463,0.00023887,90238.0,90237.0,1.69428143]
[1765213695628,0.00023887,90238.0,90237.0,1.69528143]
[1765213695813,0.00023887,90238.0,90237.0,1.69828143]
[1765213696462,0.00023887,90238.0,90237.0,1.69428143]
[1765213696850,0.00023887,90238.0,90237.0,1.70428143]
[1765213697025,0.00023887,90238.0,90237.0,1.77350661]
[1765213697896,0.00023887,90238.0,90237.0,1.58749561]
[1765213698093,0.00023887,90238.0,90237.0,0.87971643]
[1765213698304,0.00023887,90238.0,90237.0,0.70380444]
[1765213698515,0.00023887,90238.0,90237.0,0.82930044]
[1765213698661,0.00023887,90238.0,90237.0,0.88782343]
[1765213699065,0.00023887,90238.0,90237.0,0.88382343]
[1765213699268,0.00023887,90238.0,90237.0,0.89282343]
[1765213699533,0.00023887,90238.0,90237.0,0.88882343]
[1765213699709,0.00023887,90238.0,90237.0,0.87982343]
[1765213699940,0.00023887,90238.0,90237.0,0.89082343]
[1765213700116,0.00023887,90238.0,90237.0,0.88382343]
[1765213700750,0.00023887,90238.0,90237.0,0.78526543]
[1765213701152,0.00023887,90238.0,90237.0,0.78126543]
[1765213701574,0.00023887,90238.0,90237.0,0.79226543]
[1765213701721,0.00023887,90238.0,90237.0,0.76762543]
[1765213701906,0.00023887,90238.0,90237.0,0.78126543]
[1765213702114,0.00023887,90238.0,90237.0,0.77062543]
[1765213702321,0.00023887,90238.0,90237.0,0.79226543]
[1765213702668,0.00023887,90238.0,90237.0,0.29659443]
[1765213702870,0.24570498,90238.0,90237.0,0.00143287]
[1765213703073,0.28389498,90238.0,90237.0,0.004]
[1765213703296,0.28389498,90238.0,90237.0,0.011]
[1765213704284,0.01108229,90234.0,90227.0,0.01108315]
[1765213704479,0.02383,90233.0,90229.0,0.03327891]
[1765213704659,0.02383,90233.0,90230.0,0.23273839]
[1765213704860,0.02383,90233.0,90232.0,0.22165085]
[1765213705048,0.03842887,90238.0,90237.0,0.22163857]
[1765213705244,0.06625887,90238.0,90236.0,0.22164054]
[1765213705498,0.25655259,90237.0,90233.0,0.01108241]
[1765213705703,0.02383,90236.0,90235.0,0.22164342]
[1765213706296,0.02383,90236.0,90234.0,0.27245697]
[1765213706498,0.06202,90235.0,90234.0,0.03972891]
[1765213706915,0.28366348,90235.0,90234.0,0.03972891]
[1765213707107,0.02383,90235.0,90234.0,0.26137485]
[1765213707308,0.22164594,90234.0,90233.0,0.03972891]
[1765213707636,0.23472449,90236.0,90232.0,0.01108254]
[1765213707943,0.01308205,90236.0,90234.0,0.03980372]
[1765213708069,0.23272103,90237.0,90234.0,0.05088601]
[1765213708266,0.02383,90235.0,90234.0,0.05088601]
[1765213708692,0.02383,90235.0,90234.0,0.03980372]
[1765213708894,0.06202,90235.0,90234.0,0.03980372]
[1765213710076,0.28366348,90235.0,90234.0,0.03980372]
[1765213710283,0.02383,90235.0,90234.0,0.03980372]
[1765213710481,0.02383,90235.0,90234.0,0.22164594]
[1765213710785,0.22164666,90234.0,90231.0,0.01108266]
[1765213710990,0.002,90235.0,90232.0,0.23273238]
[1765213711160,0.002,90235.0,90234.0,0.26145388]
[1765213711532,0.02383,90235.0,90234.0,0.26145388]
[1765213711748,0.02383,90235.0,90234.0,0.03980794]
[1765213711948,0.02383,90235.0,90234.0,0.26145388]
[1765213712114,0.02383,90235.0,90234.0,0.03980794]
[1765213712316,0.24547348,90235.0,90234.0,0.03980794]
[1765213712541,0.22164594,90234.0,90233.0,0.03980794]
[1765213712749,0.01108389,90221.0,90216.0,0.05959152]
[1765213712955,0.04125,90216.0,90215.0,0.05970802]
[1765213713159,0.26294016,90216.0,90215.0,0.0001165]
[1765213713456,0.30113016,90216.0,90215.0,0.0001165]
[1765213714072,0.40207406,90216.0,90215.0,0.0001165]
[1765213714287,0.32432615,90216.0,90215.0,0.0001165]
[1765213714674,0.32632615,90216.0,90215.0,0.0001165]
[1765213714898,0.32532615,90216.0,90215.0,0.0001165]
[1765213715128,0.32332615,90216.0,90215.0,0.0001165]
[1765213715373,0.74948965,90216.0,90215.0,0.0001165]
[1765213715573,0.74948965,90216.0,90169.0,0.05959152]
[1765213715574,0.01108979,90173.0,90169.0,0.05959152]
[1765213715802,0.04125,90170.0,90169.0,0.00038924]
[1765213716008,0.0110893,90177.0,90173.0,0.03328579]
[1765213716218,0.23287353,90178.0,90169.0,0.00038924]
[1765213716219,0.24563326,90170.0,90169.0,0.00038924]
[1765213716428,0.02383,90170.0,90169.0,0.00038924]
[1765213717855,0.02583,90170.0,90169.0,0.00038924]
[1765213718262,0.02783,90170.0,90169.0,0.00038924]
[1765213718862,0.004,90170.0,90169.0,0.00038924]
[1765213719434,0.004,90170.0,90169.0,0.02258524]
[1765213719632,0.004,90170.0,90169.0,0.00038924]
[1765213719833,0.002,90170.0,90169.0,0.00038924]
[1765213720076,0.01108954,90175.0,90171.0,0.2218]
[1765213720290,0.01108831,90185.0,90177.0,0.22178501]
[1765213720509,0.22176623,90186.0,90173.0,0.01108979]
[1765213720510,0.2328787,90176.0,90173.0,0.01108979]
[1765213720731,0.05233967,90174.0,90171.0,0.00143287]
[1765213720953,0.221802,90171.0,90169.0,0.00638924]
[1765213721184,0.02383,90170.0,90169.0,0.00038924]
[1765213721447,0.06202,90170.0,90169.0,0.00038924]
[1765213723229,0.06202,90170.0,90169.0,0.00238924]
[1765213723637,0.06202,90170.0,90169.0,0.00038924]
[1765213723929,0.06902,90170.0,90169.0,0.00038924]
[1765213724507,0.08171715,90170.0,90169.0,0.00038924]
[1765213724716,0.06902,90170.0,90169.0,0.00038924]
[1765213724924,0.06902,90170.0,90140.0,0.0002]
[1765213724925,0.22187276,90142.0,90140.0,0.0002]
[1765213725096,0.0424,90141.0,90140.0,0.00031654]
[1765213725298,0.07974,90141.0,90140.0,0.00031654]
[1765213725496,0.17070764,90141.0,90140.0,0.00031654]
[1765213725721,0.07974,90141.0,90140.0,0.00031654]
[1765213726128,0.08374,90141.0,90140.0,0.00031654]
[1765213726574,0.07974,90141.0,90140.0,0.00031654]
[1765213726991,0.08374,90141.0,90140.0,0.01331654]
[1765213727196,0.08374,90141.0,90140.0,0.00031654]
[1765213727573,0.08874,90141.0,90140.0,0.00031654]
[1765213728832,0.10638,90141.0,90140.0,0.00031654]
[1765213729237,0.0514,90141.0,90140.0,0.00031654]
[1765213729389,0.08874,90141.0,90140.0,0.00031654]
[1765213730033,0.08474,90141.0,90140.0,0.00031654]
[1765213730236,0.08174,90141.0,90140.0,0.00031654]
[1765213730641,0.08374,90141.0,90140.0,0.00031654]
[1765213730876,0.08174,90141.0,90140.0,0.00031654]
[1765213731261,0.08574,90141.0,90140.0,0.00031654]
[1765213731640,0.08374,90141.0,90140.0,0.00031654]
[1765213731818,0.08674,90141.0,90140.0,0.00031654]
[1765213732236,0.10442,90141.0,90140.0,0.00031654]
[1765213732434,0.10142,90141.0,90140.0,0.00031654]
[1765213732650,0.10442,90141.0,90140.0,0.00031654]
[1765213732849,0.10042,90141.0,90140.0,0.00031654]
[1765213733069,0.08374,90141.0,90140.0,0.00031654]
[1765213733277,0.04069,90141.0,90140.0,0.00031654]
[1765213733433,0.03969,90141.0,90140.0,0.00031654]
[1765213733635,0.02501,90141.0,90140.0,0.00031654]
[1765213733836,0.006,90141.0,90140.0,0.00031654]
[1765213734261,0.006,90141.0,90140.0,0.00174941]
[1765213734484,0.003,90141.0,90140.0,0.00174941]
[1765213734680,0.01768,90152.0,90149.0,0.01109274]
[1765213734881,0.01109262,90150.0,90146.0,0.01109311]
[1765213735155,0.04110948,90149.0,90147.0,0.22185947]
[1765213735690,0.04110948,90149.0,90148.0,0.24405339]
[1765213735926,0.02339,90149.0,90148.0,0.24405339]
[1765213736128,0.02339,90149.0,90146.0,0.01109311]
[1765213736345,0.01309237,90152.0,90140.0,0.00031654]
[1765213736346,0.01109311,90146.0,90140.0,0.00031654]
[1765213736562,0.02339,90141.0,90140.0,0.00031654]
[1765213736687,0.26298409,90141.0,90140.0,0.00031654]
[1765213736894,0.28260461,90141.0,90140.0,0.00031654]
[1765213737316,0.05043274,90149.0,90146.0,0.01109311]
[1765213737519,0.01109299,90147.0,90143.0,0.01109348]
[1765213737722,0.03734,90155.0,90150.0,0.22185151]
[1765213737976,0.23294471,90152.0,90147.0,0.01109299]
[1765213738208,0.01109225,90153.0,90147.0,0.01109299]
[1765213738322,0.01109225,90153.0,90146.0,0.01109311]
[1765213738323,0.24524763,90148.0,90146.0,0.01109311]
[1765213738536,0.02339,90147.0,90146.0,0.23295542]
[1765213738735,0.23953103,90151.0,90147.0,0.03328899]
[1765213738956,0.01109262,90150.0,90147.0,0.022196]
[1765213739156,0.24524739,90148.0,90143.0,0.022196]
[1765213739369,0.02339,90143.0,90140.0,0.02351253]
[1765213739572,0.22187461,90141.0,90140.0,0.00131653]
[1765213740308,0.28260461,90141.0,90140.0,0.00031654]
[1765213740660,0.06073,90141.0,90080.0,0.00119999]
[1765213740850,0.26429923,90131.0,90130.0,0.00031669]
[1765213741303,0.30163923,90131.0,90130.0,0.00031669]
[1765213741695,0.01109767,90109.0,90104.0,0.01109828]
[1765213741919,0.01109779,90108.0,90105.0,0.01109816]
[1765213742035,0.03734,90108.0,90106.0,0.23305884]
[1765213742361,0.01109828,90104.0,90100.0,0.0164528]
[1765213742558,0.24536311,90101.0,90100.0,0.00435404]
[1765213743177,0.28270311,90101.0,90100.0,0.00435404]
[1765213743583,0.28270311,90101.0,90100.0,0.01635404]
[1765213743785,0.28270311,90101.0,90100.0,0.00435404]
[1765213744220,0.28270311,90101.0,90100.0,0.00935404]
[1765213744425,0.3048991,90101.0,90100.0,0.00935404]
[1765213744837,0.3048991,90101.0,90100.0,0.00435404]
[1765213745014,0.28470311,90101.0,90100.0,0.01535404]
[1765213745432,0.28470311,90101.0,90100.0,0.00435404]
[1765213745635,0.28570311,90101.0,90100.0,0.00435404]
[1765213745850,0.28870311,90101.0,90100.0,0.00435404]
[1765213751324,0.37840257,90101.0,90100.0,0.00435404]
[1765213751528,0.3108991,90101.0,90100.0,0.00435404]
[1765213751777,0.28870311,90101.0,90100.0,0.00435404]
[1765213753140,0.3108991,90101.0,90100.0,0.00435404]
[1765213753543,0.30638311,90101.0,90100.0,0.00435404]
[1765213755383,0.28870311,90101.0,90100.0,0.00435404]
[1765213755568,0.30638311,90101.0,90100.0,0.00435404]
[1765213755992,0.39386297,90101.0,90100.0,0.00435404]
[1765213756219,0.30638311,90101.0,90100.0,0.00435404]
[1765213756454,0.30338311,90101.0,90100.0,0.00435404]
[1765213756757,0.30538311,90101.0,90100.0,0.00435404]
[1765213757176,0.3275791,90101.0,90100.0,0.00435404]
[1765213757657,0.30038311,90101.0,90100.0,0.00435404]
[1765213757869,0.3225791,90101.0,90100.0,0.00435404]
[1765213758091,0.3255791,90101.0,90100.0,0.00435404]
[1765213758498,0.3275791,90101.0,90100.0,0.00435404]
[1765213760387,0.41717856,90101.0,90100.0,0.00435404]
[1765213760591,0.3275791,90101.0,90100.0,0.00435404]
[1765213763306,0.3275791,90101.0,90080.0,0.0002]
[1765213763307,0.2220224,90081.0,90080.0,0.0002]
[1765213763480,0.2811724,90081.0,90080.0,0.00031665]
[1765213763681,0.3158224,90081.0,90080.0,0.00031665]
[1765213763896,0.3158224,90081.0,90080.0,0.00091536]
[1765213765507,0.3168224,90081.0,90080.0,0.00191536]
[1765213766941,0.04251,90081.0,90080.0,0.00191536]
[1765213767137,0.01868,90081.0,90080.0,0.00191536]
[1765213767344,0.2645324,90081.0,90080.0,0.00191536]
[1765213767505,0.04251,90081.0,90080.0,0.22394022]
[1765213767910,0.2645324,90081.0,90080.0,0.00191536]
[1765213768708,0.04251,90081.0,90080.0,0.22394022]
[1765213769116,0.01868,90081.0,90080.0,0.22394022]
[1765213769315,0.001,90081.0,90080.0,0.22537309]
[1765213769846,0.001,90081.0,90080.0,0.24756909]
[1765213770195,0.01768,90089.0,90088.0,0.022196]
[1765213770594,0.01768,90089.0,90088.0,0.22200515]
[1765213770935,0.08726013,90089.0,90086.0,0.23310958]
[1765213771140,0.02383,90087.0,90086.0,0.0111005]
[1765213771326,0.02383,90087.0,90085.0,0.22201251]
[1765213771523,0.26775542,90088.0,90085.0,0.22201251]
[1765213771524,0.05848,90086.0,90085.0,0.22201251]
[1765213772154,0.05848,90086.0,90084.0,0.23311093]
[1765213772357,0.02383,90085.0,90084.0,0.25530693]
[1765213772965,0.01768,90089.0,90088.0,0.22200515]
[1765213773363,0.04151,90089.0,90087.0,0.22200729]
[1765213773570,0.04151,90089.0,90088.0,0.22200515]
[1765213774842,0.01768,90089.0,90088.0,0.24420115]
[1765213775055,0.01109791,90107.0,90101.0,0.01109865]
[1765213775256,0.01109791,90107.0,90103.0,0.22196737]
[1765213775533,0.02383,90102.0,90101.0,0.01109865]
[1765213775955,0.02383,90102.0,90097.0,0.022196]
[1765213775956,0.01109927,90096.0,90092.0,0.22199486]
[1765213776163,0.01109927,90096.0,90091.0,0.01109988]
[1765213776164,0.03465,90105.0,90091.0,0.01109988]
[1765213776165,0.03465,90123.0,90119.0,0.22192878]
[1765213776403,0.01109656,90118.0,90111.0,0.22194844]
[1765213776608,0.01109754,90110.0,90105.0,0.03963633]
[1765213776782,0.01109754,90110.0,90106.0,0.23305784]
[1765213777009,0.01109754,90110.0,90106.0,0.2330579]
[1765213777214,0.02881715,90109.0,90106.0,0.00143287]
[1765213777433,0.01771948,90109.0,90108.0,0.01109779]
[1765213777680,0.01768,90115.0,90112.0,0.0332933]
[1765213777847,0.01768,90115.0,90111.0,0.01109742]
[1765213777848,0.02877693,90115.0,90111.0,0.01109742]
[1765213778098,0.01768,90115.0,90114.0,0.22194109]
[1765213778493,0.01768,90121.0,90118.0,0.01109656]
[1765213778692,0.01768,90121.0,90120.0,0.22192632]
[1765213778900,0.01768,90121.0,90120.0,0.24412232]
[1765213779458,0.01768,90121.0,90118.0,0.022196]
[1765213779459,0.04151,90121.0,90118.0,0.022196]
[1765213779691,0.25685521,90119.0,90115.0,0.01109693]
[1765213779855,0.02383,90119.0,90118.0,0.022196]
[1765213780056,0.02383,90119.0,90118.0,0.24412724]
[1765213780263,0.01868,90121.0,90120.0,0.22192632]
[1765213781003,0.001,90121.0,90120.0,0.22192632]
[1765213781402,0.02877533,90128.0,90124.0,0.23301106]
[1765213781403,0.01109545,90127.0,90124.0,0.23301106]
[1765213781611,0.01768,90128.0,90126.0,0.22191016]
[1765213781767,0.01768,90128.0,90127.0,0.22190908]
[1765213781980,0.24573929,90127.0,90124.0,0.01109582]
[1765213782184,0.02298,90125.0,90121.0,0.01109619]
[1765213782386,0.02298,90124.0,90123.0,0.22191893]
[1765213782586,0.02298,90124.0,90122.0,0.22192027]
[1765213783025,0.02298,90123.0,90122.0,0.22192139]
[1765213783258,0.04069948,90123.0,90121.0,0.22192385]
[1765213783458,0.02298,90122.0,90121.0,0.22192385]
[1765213783671,0.01109656,90118.0,90114.0,0.01252992]
[1765213783876,0.03394,90122.0,90119.0,0.22192808]
[1765213784096,0.26695763,90122.0,90119.0,0.23302451]
[1765213784276,0.04503606,90122.0,90121.0,0.002]
[1765213784506,0.01771948,90122.0,90121.0,0.002]
[1765213784727,0.04069948,90122.0,90121.0,0.22192385]
[1765213784963,0.02298,90122.0,90121.0,0.22192385]
[1765213785618,0.02298,90122.0,90121.0,0.22392385]
[1765213787580,0.01768,90128.0,90125.0,0.0110957]
[1765213787832,0.03532,90135.0,90132.0,0.01109483]
[1765213787985,0.03532,90135.0,90134.0,0.22189184]
[1765213788188,0.72130967,90170.0,90136.0,0.22188206]
[1765213788189,0.0287736,90142.0,90136.0,0.22188206]
[1765213788389,0.22187954,90139.0,90137.0,0.22188429]
[1765213788606,0.02298,90137.0,90133.0,0.01109471]
[1765213788806,0.01771948,90136.0,90133.0,0.23298859]
[1765213789010,0.02298,90134.0,90133.0,0.23298859]
[1765213789515,0.02298,90134.0,90132.0,0.01109483]
[1765213789728,0.01771948,90134.0,90133.0,0.22189431]
[1765213789937,0.001,90135.0,90134.0,0.22189184]
[1765213790100,0.01109385,90140.0,90138.0,0.22188148]
[1765213790318,0.01109373,90141.0,90139.0,0.22187871]
[1765213790518,0.25076237,90142.0,90139.0,0.01109397]
[1765213790717,0.00011633,90142.0,90141.0,0.22187461]
[1765213790935,0.00011633,90142.0,90141.0,0.24550348]
[1765213791685,0.00211633,90142.0,90141.0,0.24550348]
[1765213792087,0.00011633,90142.0,90141.0,0.24550348]
[1765213792251,0.00011633,90142.0,90141.0,0.30802647]
[1765213792422,0.00011633,90142.0,90141.0,0.63102647]
[1765213792864,0.00011633,90142.0,90141.0,0.63502647]
[1765213793594,0.00011633,90142.0,90141.0,0.64602647]
[1765213795245,0.00011633,90142.0,90141.0,0.63502647]
[1765213795490,0.00011633,90142.0,90141.0,0.63102647]
[1765213795911,0.00011633,90142.0,90141.0,0.63702647]
[1765213796527,0.00011633,90142.0,90141.0,0.64702647]
[1765213796879,0.00011633,90142.0,90141.0,1.55994047]
[1765213797570,0.01108905,90179.0,90141.0,1.55994047]
[1765213797571,0.02872745,90192.0,90187.0,0.01108807]
[1765213797684,0.02872745,90192.0,90180.0,0.00099999]
[1765213797685,0.05196892,90192.0,90180.0,0.00099999]
[1765213797898,0.02298,90181.0,90180.0,0.01208892]
[1765213798106,0.01108893,90180.0,90162.0,0.23291162]
[1765213798306,0.04069948,90179.0,90176.0,0.01108942]
[1765213798506,0.27932099,90179.0,90176.0,0.23287571]
[1765213798739,0.02298,90177.0,90176.0,0.23287571]
[1765213798989,0.04069948,90177.0,90176.0,0.23287571]
[1765213799279,0.07463948,90177.0,90176.0,0.23287571]
[1765213799490,0.0110904,90168.0,90164.0,0.22181786]
[1765213799623,0.01108979,90173.0,90167.0,0.22180982]
[1765213799624,0.2506108,90171.0,90167.0,0.22180982]
[1765213799823,0.01108979,90173.0,90168.0,0.23289733]
[1765213799824,0.2328894,90172.0,90168.0,0.23289733]
[1765213800217,0.01771948,90171.0,90169.0,0.22180535]
[1765213800422,0.23287299,90178.0,90174.0,0.22179292]
[1765213800599,0.0219,90175.0,90174.0,0.23288259]
[1765213800898,0.0219,90175.0,90174.0,0.01108967]
[1765213801071,0.05356,90175.0,90173.0,0.23288489]
[1765213801276,0.22179942,90172.0,90168.0,0.0110904]
[1765213801476,0.22179942,90172.0,90145.0,0.50310692]
[1765213801477,0.22182333,90162.0,90159.0,0.01109151]
[1765213801708,0.01771948,90161.0,90159.0,0.23291976]
[1765213801958,0.03819,90160.0,90159.0,0.23291976]
[1765213802160,0.01629,90168.0,90166.0,0.2218131]
[1765213802274,0.01108979,90173.0,90166.0,0.2218131]
[1765213802275,0.01629,90173.0,90172.0,0.01108991]
[1765213802476,0.01684,90179.0,90177.0,0.22178604]
[1765213802672,0.01684,90179.0,90176.0,0.01108942]
[1765213802673,0.27534404,90178.0,90176.0,0.01108942]
[1765213802882,0.27534404,90178.0,90167.0,0.01109053]
[1765213802883,0.01109004,90171.0,90167.0,0.01109053]
[1765213803094,0.01108979,90173.0,90164.0,0.0110909]
[1765213803348,0.01771948,90172.0,90169.0,0.01109028]
[1765213803557,0.03166,90171.0,90170.0,0.22180326]
[1765213803711,0.0219,90170.0,90169.0,0.23289594]
[1765213803909,0.03961948,90170.0,90169.0,0.23289594]
[1765213804133,0.03961948,90170.0,90168.0,0.23289825]
[1765213804368,0.01771948,90170.0,90169.0,0.22180572]
[1765213804596,0.003,90172.0,90171.0,0.2439968]
[1765213804741,0.003,90172.0,90171.0,0.22323367]
[1765213804943,0.00038892,90179.0,90178.0,0.22178358]
[1765213805350,0.00038892,90179.0,90173.0,0.01108979]
[1765213805351,0.2218008,90171.0,90170.0,0.00099999]
[1765213805608,0.2218008,90171.0,90161.0,0.01109127]
[1765213805609,0.01109065,90166.0,90161.0,0.01109127]
[1765213805774,0.0110909,90164.0,90161.0,0.23291664]
[1765213805975,0.22181556,90165.0,90161.0,0.23291664]
[1765213805976,0.03819,90162.0,90161.0,0.23291664]
[1765213806495,0.03819,90162.0,90161.0,0.2218254]
[1765213806661,0.06985,90162.0,90161.0,0.2218254]
[1765213806860,0.06985,90162.0,90160.0,0.2329187]
[1765213807090,0.0219,90161.0,90160.0,0.2329187]
[1765213807295,0.0219,90161.0,90160.0,0.01109139]
[1765213807495,0.28647776,90161.0,90157.0,0.22183278]
[1765213807731,0.22183028,90160.0,90156.0,0.23292721]
[1765213807856,0.0219,90157.0,90156.0,0.23292721]
[1765213808057,0.01108942,90176.0,90171.0,0.22179961]
[1765213808331,0.01108942,90176.0,90172.0,0.22179828]
[1765213808505,0.00038892,90179.0,90177.0,0.22178604]
[1765213808706,0.00038892,90179.0,90178.0,0.24397958]
[1765213809129,0.00038892,90179.0,90178.0,0.22178358]
[1765213809741,0.00038892,90179.0,90178.0,0.24541245]
[1765213810286,0.00438892,90179.0,90178.0,0.24541245]
[1765213810490,0.00438892,90179.0,90178.0,0.56841245]
[1765213810823,0.00438892,90179.0,90178.0,0.63093544]
[1765213810824,0.00038892,90179.0,90178.0,0.63093544]
[1765213811040,0.00338892,90179.0,90178.0,0.63093544]
[1765213811244,0.00338892,90179.0,90178.0,0.60873944]
[1765213811794,0.00038892,90179.0,90178.0,0.60873944]
[1765213811992,0.00038892,90179.0,90178.0,0.63093544]
[1765213813515,0.00238892,90179.0,90178.0,0.63093544]
[1765213814591,0.00238892,90179.0,90178.0,1.01869908]
[1765213814913,0.00238892,90179.0,90178.0,0.97911351]
[1765213815712,0.00238892,90179.0,90178.0,0.98011351]
[1765213815918,0.00238892,90179.0,90178.0,0.97911351]
[1765213816127,0.00038892,90179.0,90178.0,0.97911351]
[1765213816336,0.00038892,90179.0,90178.0,0.98311351]
[1765213816506,0.00038892,90179.0,90178.0,1.04249187]
[1765213816926,0.00038892,90179.0,90178.0,1.03949187]
[1765213817165,0.00038892,90179.0,90178.0,0.98311351]
[1765213817371,0.00038892,90179.0,90178.0,1.04249187]
[1765213817955,0.00038892,90179.0,90178.0,1.03949187]
[1765213818402,0.00038892,90179.0,90178.0,0.97911351]
[1765213818906,0.00038892,90179.0,90178.0,0.99975351]
[1765213819287,0.00038892,90179.0,90178.0,1.00375351]
[1765213819928,0.00038892,90179.0,90178.0,0.91659052]
[1765213820129,0.00038892,90179.0,90178.0,0.54292545]
[1765213820331,0.00038892,90179.0,90178.0,0.87192545]
[1765213820537,0.00038892,90179.0,90178.0,0.93444844]
[1765213820760,0.00038892,90179.0,90178.0,0.93044844]
[1765213821185,0.00038892,90179.0,90178.0,0.93344844]
[1765213821393,0.00038892,90179.0,90178.0,0.93144844]
[1765213822203,0.00038892,90179.0,90178.0,0.98800709]
[1765213822410,0.00038892,90179.0,90178.0,0.92844844]
[1765213822611,0.00038892,90179.0,90178.0,0.93044844]
[1765213822938,0.00038892,90179.0,90178.0,0.98242651]
[1765213823212,0.00038892,90179.0,90178.0,0.98042651]
[1765213824040,0.00038892,90179.0,90178.0,1.06265169]
[1765213824242,0.00038892,90179.0,90178.0,0.65263763]
[1765213824447,0.00038892,90179.0,90178.0,0.57341245]
[1765213824675,0.00038892,90179.0,90178.0,0.63593544]
[1765213824869,0.00038892,90179.0,90178.0,0.63393544]
[1765213825093,0.02087892,90179.0,90178.0,0.24841245]
[1765213825287,0.00038892,90179.0,90178.0,0.0633533]
[1765213825507,0.00038892,90179.0,90178.0,0.24941245]
[1765213825688,0.00038892,90179.0,90178.0,0.25141245]
[1765213825823,0.00038892,90179.0,90178.0,0.24941245]
[1765213826021,0.00038892,90179.0,90178.0,0.22321645]
[1765213826436,0.00038892,90179.0,90178.0,0.22521645]
[1765213827278,0.00038892,90179.0,90178.0,0.24741245]
[1765213828978,0.05267892,90179.0,90178.0,0.22378358]
[1765213829190,0.05267892,90179.0,90178.0,0.002]
[1765213829393,0.27446004,90179.0,90178.0,0.002]
[1765213829643,0.35349289,90179.0,90178.0,0.002]
[1765213829795,0.22180326,90170.0,90169.0,0.03972443]
[1765213829992,0.22180718,90169.0,90167.0,0.03972443]
[1765213830219,0.0318,90169.0,90167.0,0.03972443]
[1765213830392,0.22181064,90167.0,90165.0,0.03972443]
[1765213830589,0.30207144,90168.0,90165.0,0.03972443]
[1765213830590,0.0597704,90168.0,90165.0,0.03972443]
[1765213830806,0.22181556,90165.0,90164.0,0.03972443]
[1765213830997,0.22181556,90165.0,90150.0,0.01109262]
[1765213830998,0.22182048,90163.0,90162.0,0.03972443]
[1765213831202,0.2218371,90157.0,90154.0,0.23293383]
[1765213831417,0.02049,90158.0,90156.0,0.23292916]
[1765213831750,0.02049,90155.0,90154.0,0.2329296]
[1765213831961,0.02049,90155.0,90154.0,0.2551256]
[1765213832103,0.02049,90155.0,90154.0,0.2329296]
[1765213832312,0.003,90157.0,90156.0,0.23292958]
[1765213832721,0.04289077,90165.0,90162.0,0.01109114]
[1765213832906,0.26470701,90165.0,90162.0,0.01109114]
[1765213833117,0.02049,90163.0,90162.0,0.23291387]
[1765213833329,0.02049,90163.0,90160.0,0.23291436]
[1765213833567,0.0110909,90164.0,90161.0,0.23291667]
[1765213833863,0.02049,90162.0,90161.0,0.23291667]
[1765213834222,0.23291928,90160.0,90156.0,0.01109188]
[1765213834442,0.23291928,90160.0,90155.0,0.23293137]
[1765213834443,0.02049,90157.0,90155.0,0.23293137]
[1765213834857,0.02049,90156.0,90155.0,0.25512737]
[1765213835038,0.02049,90156.0,90155.0,0.23293137]
[1765213835268,0.02049,90156.0,90151.0,0.0110925]
[1765213835269,0.011092,90155.0,90151.0,0.0110925]
[1765213835379,0.03737,90152.0,90151.0,0.0110925]
[1765213835598,0.03737,90152.0,90145.0,0.26158765]
[1765213835599,0.04846237,90152.0,90145.0,0.26158765]
[1765213835810,0.02049,90146.0,90145.0,0.27268088]
[1765213836005,0.02049,90146.0,90143.0,0.03972443]
[1765213836210,0.25345175,90144.0,90141.0,0.03972443]
[1765213836408,0.25345175,90144.0,90136.0,0.09290476]
[1765213836409,0.03737,90142.0,90140.0,0.22187643]
[1765213836656,0.01688,90142.0,90140.0,0.22187643]
[1765213836826,0.01688,90142.0,90141.0,0.022196]
[1765213837176,0.01688,90142.0,90140.0,0.22187643]
[1765213837358,0.01688,90142.0,90141.0,0.022196]
[1765213837754,0.22185605,90149.0,90141.0,0.022196]
[1765213837755,0.003,90146.0,90143.0,0.01109348]
[1765213837953,0.003,90146.0,90145.0,0.022196]
[1765213838114,0.003,90146.0,90145.0,0.00143287]
[1765213838316,0.01688,90157.0,90156.0,0.022196]
[1765213838523,0.06917,90157.0,90155.0,0.22183987]
[1765213838727,0.06917,90157.0,90148.0,0.23294858]
[1765213838728,0.01109225,90153.0,90150.0,0.01109262]
[1765213838948,0.0318,90156.0,90152.0,0.22184754]
[1765213839180,0.0318,90156.0,90149.0,0.01109274]
[1765213839484,0.0318,90156.0,90137.0,0.03972443]
[1765213839485,0.221882,90138.0,90137.0,0.03972443]
[1765213839717,0.01109323,90145.0,90139.0,0.01109397]
[1765213839954,0.01109323,90145.0,90134.0,0.03972443]
[1765213839955,0.01109422,90137.0,90134.0,0.03972443]
[1765213840162,0.03737,90133.0,90132.0,0.00011633]
[1765213840547,0.03737,90133.0,90132.0,0.2220131]
[1765213841266,0.01109323,90145.0,90141.0,0.01109373]
[1765213841544,0.01688,90140.0,90136.0,0.01109434]
[1765213841744,0.01688,90140.0,90136.0,0.03329034]
[1765213841923,0.02049,90137.0,90136.0,0.23298126]
[1765213842515,0.23294769,90149.0,90146.0,0.23295542]
[1765213842728,0.22185891,90148.0,90144.0,0.03328936]
[1765213842993,0.23294863,90149.0,90146.0,0.22186227]
[1765213843205,0.04317274,90149.0,90146.0,0.23295538]
[1765213843406,0.0214,90147.0,90146.0,0.25515138]
[1765213843618,0.0214,90147.0,90144.0,0.01109336]
[1765213843619,0.03249299,90147.0,90144.0,0.022196]
[1765213843757,0.22187472,90141.0,90137.0,0.01109422]
[1765213843965,0.22187711,90140.0,90138.0,0.0110941]